lending/lending_fUSD_20241103
["ID","MTS","AMOUNT","RATE_DAILY","PERIOD"]
[341209529,1730646690167,-500.0,0.00039452,2]
[341209530,1730646690177,-500.0,0.00039452,2]
[341209531,1730646690186,-500.0,0.00039452,2]
[341209532,1730646690196,-500.0,0.00039452,2]
[341209533,1730646690205,-359.93881115,0.00039452,2]
[341209534,1730646690215,-500.0,0.00039452,2]
[341209535,1730646690224,-500.0,0.00039452,2]
[341209536,1730646690233,-500.0,0.00039452,2]
[341209537,1730646690243,-500.0,0.00039452,2]
[341209538,1730646690252,-500.0,0.00039452,2]
[341209539,1730646690261,-500.0,0.00039452,2]
[341209540,1730646690270,-500.0,0.00039452,2]
[341209541,1730646690280,-1281.51,0.00039452,2]
[341209542,1730646690289,-250.0,0.00039452,2]
[341209543,1730646690298,-500.0,0.00039452,2]
[341209544,1730646690312,-500.0,0.00039452,2]
[341209545,1730646690322,-500.0,0.00039452,2]
[341209546,1730646690331,-500.0,0.00039452,2]
[341209547,1730646690340,-500.0,0.00039452,2]
[341209548,1730646690350,-500.0,0.00039452,2]
[341209549,1730646690366,-798.34,0.00039452,2]
[341209550,1730646690375,-500.0,0.00039452,2]
[341209551,1730646690385,-500.0,0.00039452,2]
[341209552,1730646690395,-487.57555122,0.00039452,2]
[341209553,1730646690404,-500.0,0.00039452,2]
[341209554,1730646690414,-1672.57,0.00039452,2]
[341209555,1730646690423,-500.0,0.00039452,2]
[341209556,1730646690433,-500.0,0.00039452,2]
[341209557,1730646690442,-500.0,0.00039452,2]
[341209558,1730646690452,-500.0,0.00039452,2]
[341209559,1730646690461,-500.0,0.00039452,2]
[341209560,1730646690471,-266.50500542,0.00039452,2]
[341209561,1730646690480,-150.0,0.00039452,2]
[341209562,1730646690489,-500.0,0.00039452,2]
[341209563,1730646690499,-500.0,0.00039452,2]
[341209564,1730646690509,-198.28353079,0.00039452,2]
[341209565,1730646690518,-500.0,0.00039452,2]
[341209566,1730646690527,-500.0,0.00039452,2]
[341209567,1730646690537,-500.0,0.00039452,2]
[341209568,1730646690547,-500.0,0.00039452,2]
[341209569,1730646690556,-500.0,0.00039452,2]
[341209570,1730646690566,-500.0,0.00039452,2]
[341209571,1730646690575,-308.39173494,0.00039452,2]
[341209572,1730646690585,-500.0,0.00039452,2]
[341209573,1730646690594,-503.91,0.00039452,2]
[341209574,1730646690603,-500.0,0.00039452,2]
[341209575,1730646690619,-500.0,0.00039452,2]
[341209576,1730646690629,-500.0,0.00039452,2]
[341209577,1730646690638,-540.50504081,0.00039452,2]
[341209578,1730646690647,-500.0,0.00039452,2]
[341209579,1730646690657,-1000.0,0.00039452,89]
[341209580,1730646690666,-513.38,0.00039452,2]
[341209581,1730646690676,-500.0,0.00039452,2]
[341209582,1730646690686,-500.0,0.00039452,2]
[341209583,1730646690696,-500.0,0.00039452,2]
[341209584,1730646690705,-500.0,0.00039452,2]
[341209585,1730646690715,-2000.0,0.00039452,2]
[341209586,1730646690726,-500.0,0.00039452,2]
[341209587,1730646690736,-500.0,0.00039452,2]
[341209588,1730646690745,-500.0,0.00039452,2]
[341209589,1730646690755,-500.0,0.00039452,2]
[341209590,1730646690764,-500.0,0.00039452,2]
[341209591,1730646690774,-500.0,0.00039452,2]
[341209592,1730646690783,-500.0,0.00039452,2]
[341209593,1730646690793,-1147.15,0.00039452,2]
[341209594,1730646690802,-377.1200253,0.00039452,2]
[341209595,1730646690812,-908.15,0.00039452,2]
[341209596,1730646690822,-500.0,0.00039452,2]
[341209597,1730646690831,-10956.67,0.00039452,2]
[341209598,1730646690840,-500.0,0.00039452,2]
[341209599,1730646690850,-500.0,0.00039452,2]
[341209600,1730646690865,-500.0,0.00039452,2]
[341209601,1730646690875,-500.0,0.00039452,2]
[341209602,1730646691013,-500.0,0.00039452,2]
[341209603,1730646691023,-602.99,0.00039452,2]
[341209604,1730646691032,-691.73,0.00039452,2]
[341209605,1730646691042,-769.94,0.00039452,2]
[341209606,1730646691052,-500.0,0.00039452,2]
[341209607,1730646691061,-500.0,0.00039452,2]
[341209608,1730646691071,-500.0,0.00039452,2]
[341209609,1730646691080,-500.0,0.00039452,2]
[341209610,1730646691089,-500.0,0.00039452,2]
[341209611,1730646691099,-500.0,0.00039452,2]
[341209612,1730646691108,-660.29,0.00039452,2]
[341209613,1730646691118,-500.0,0.00039452,2]
[341209614,1730646691128,-500.0,0.00039452,2]
[341209615,1730646691137,-500.0,0.00039452,2]
[341209616,1730646691147,-500.0,0.00039452,2]
[341209617,1730646691157,-684.44,0.00039452,2]
[341209618,1730646691166,-500.0,0.00039452,2]
[341209619,1730646691176,-500.0,0.00039452,2]
[341209620,1730646691185,-500.0,0.00039452,2]
[341209621,1730646691195,-3893.36,0.00039452,2]
[341209622,1730646691204,-500.0,0.00039452,2]
[341209623,1730646691214,-627.36,0.00039452,2]
[341209624,1730646691223,-500.0,0.00039452,2]
[341209625,1730646691232,-1238.57,0.00039452,2]
[341209626,1730646691241,-343.84125376,0.00039452,2]
[341209627,1730646691251,-1845.76,0.00039452,2]
[341209628,1730646691260,-156.89932664,0.00039452,2]
[341209629,1730646691269,-500.0,0.00039452,2]
[341209630,1730646691278,-500.0,0.00039452,2]
[341209631,1730646691287,-963.64,0.00039452,2]
[341209632,1730646691297,-2000.0,0.00039452,30]
[341209633,1730646691310,-500.0,0.00039452,2]
[341209634,1730646691320,-500.0,0.00039452,2]
[341209635,1730646691330,-500.0,0.00039452,2]
[341209636,1730646691339,-500.0,0.00039452,2]
[341209637,1730646691350,-497.77345969,0.00039452,2]
[341209638,1730646691362,-476.34520273,0.00039452,2]
[341209639,1730646691371,-5855.7,0.00039452,2]
[341209640,1730646691382,-1805.52,0.00039452,2]
[341209641,1730646691392,-1176.28,0.00039452,2]
[341209642,1730646691402,-602.78,0.00039452,2]
[341209643,1730646691412,-500.0,0.00039452,2]
[341209644,1730646691422,-500.0,0.00039452,2]
[341209645,1730646691431,-419.97547967,0.00039452,2]
[341209646,1730646691440,-500.0,0.00039452,2]
[341209647,1730646691450,-500.0,0.00039452,2]
[341209648,1730646691459,-476.21833005,0.00039452,2]
[341209649,1730646691468,-1152.43,0.00039452,2]
[341209650,1730646691478,-500.0,0.00039452,2]
[341209651,1730646691487,-368.413794,0.00039452,14]
[341209652,1730646691497,-500.0,0.00039452,2]
[341209653,1730646691507,-500.0,0.00039452,2]
[341209654,1730646691517,-368.4138,0.00039452,14]
[341209655,1730646691527,-1221.41,0.00039452,2]
[341209656,1730646691536,-3349.02,0.00039452,2]
[341209657,1730646691546,-1633.72,0.00039452,2]
[341209658,1730646691556,-387.32088067,0.00039452,2]
[341209659,1730646691565,-500.0,0.00039452,2]
[341209660,1730646691575,-1238.48,0.00039452,2]
[341209661,1730646691584,-500.0,0.00039452,2]
[341209662,1730646691594,-500.0,0.00039452,2]
[341209663,1730646691603,-500.0,0.00039452,2]
[341209664,1730646691616,-500.0,0.00039452,2]
[341209665,1730646691626,-3905.42,0.00039452,2]
[341209666,1730646691635,-500.0,0.00039452,2]
[341209667,1730646691645,-1373.97,0.00039452,2]
[341209668,1730646691655,-500.0,0.00039452,2]
[341209669,1730646691664,-220.68652,0.00039488,7]
[341209670,1730646691673,-441.57952891,0.00039625,2]
[341209671,1730646691683,-8501.843,0.00039625,120]
[341209672,1730646691692,-8501.844,0.00039625,120]
[341209673,1730646691702,-8501.844,0.00039625,120]
[341209674,1730646691711,-8501.844,0.00039625,120]
[341209675,1730646691721,-8501.844,0.00039625,120]
[341209676,1730646691730,-156.42,0.00039671,2]
[341209677,1730646691740,-220.68652,0.00039688,7]
[341209678,1730646691749,-165.49549177,0.000397,118]
[341209679,1730646691759,-1488.5,0.00039726,2]
[341209680,1730646691768,-956.1,0.00039726,7]
[341209681,1730646691778,-500.0,0.00039726,2]
[341209682,1730646691787,-500.0,0.00039726,2]
[341209683,1730646691797,-500.0,0.00039726,2]
[341209684,1730646691806,-906.58,0.00039726,2]
[341209685,1730646691815,-500.0,0.00039726,2]
[341209686,1730646691824,-500.0,0.00039726,2]
[341209687,1730646691833,-500.0,0.00039726,2]
[341209688,1730646691843,-585.45195399,0.00039726,2]
[341209689,1730646691853,-500.0,0.00039726,2]
[341209690,1730646691864,-500.0,0.00039726,2]
[341209691,1730646691874,-500.0,0.00039726,2]
[341209692,1730646691883,-500.0,0.00039726,2]
[341209693,1730646691892,-181.66987086,0.00039726,2]
[341209694,1730646691902,-500.0,0.00039726,2]
[341209695,1730646691911,-500.0,0.00039726,2]
[341209696,1730646691920,-336.55319298,0.00039726,2]
[341209697,1730646691930,-500.0,0.00039726,2]
[341209698,1730646691939,-500.0,0.00039726,2]
[341209699,1730646691949,-500.0,0.00039726,2]
[341209700,1730646691958,-500.0,0.00039726,2]
[341209701,1730646691968,-500.0,0.00039726,2]
[341209702,1730646691978,-500.0,0.00039726,2]
[341209703,1730646691987,-369.00303081,0.00039726,2]
[341209704,1730646691996,-500.0,0.00039726,2]
[341209705,1730646692006,-1281.51,0.00039726,2]
[341209706,1730646692015,-250.0,0.00039726,2]
[341209707,1730646692025,-554.57166927,0.00039726,2]
[341209708,1730646692034,-500.0,0.00039726,2]
[341209709,1730646692044,-338.44625376,0.00039726,2]
[341209710,1730646692053,-500.0,0.00039726,2]
[341209711,1730646692062,-500.0,0.00039726,2]
[341209712,1730646692071,-500.0,0.00039726,2]
[341209713,1730646692080,-798.34,0.00039726,2]
[341209714,1730646692089,-500.0,0.00039726,2]
[341209715,1730646692099,-500.0,0.00039726,2]
[341209716,1730646692110,-562.59068379,0.00039726,2]
[341209717,1730646692120,-1672.57,0.00039726,2]
[341209718,1730646692129,-500.0,0.00039726,2]
[341209719,1730646692139,-500.0,0.00039726,2]
[341209720,1730646692148,-500.0,0.00039726,2]
[341209721,1730646692157,-500.0,0.00039726,2]
[341209722,1730646692166,-500.0,0.00039726,2]
[341209723,1730646692176,-289.6519752,0.00039726,2]
[341209724,1730646692185,-500.0,0.00039726,2]
[341209725,1730646692194,-500.0,0.00039726,2]
[341209726,1730646692203,-237.99168902,0.00039726,2]
[341209727,1730646692213,-500.0,0.00039726,2]
[341209728,1730646692223,-500.0,0.00039726,2]
[341209729,1730646692232,-500.0,0.00039726,2]
[341209730,1730646692242,-500.0,0.00039726,2]
[341209731,1730646692251,-500.0,0.00039726,2]
[341209732,1730646692260,-500.0,0.00039726,2]
[341209733,1730646692270,-503.91,0.00039726,2]
[341209734,1730646692279,-500.0,0.00039726,2]
[341209735,1730646692288,-500.0,0.00039726,2]
[341209736,1730646692298,-500.0,0.00039726,2]
[341209737,1730646692307,-500.0,0.00039726,2]
[341209738,1730646692316,-1000.0,0.00039726,89]
[341209739,1730646692329,-513.38,0.00039726,2]
[341209740,1730646692338,-308.29904301,0.00039726,2]
[341209741,1730646692348,-500.0,0.00039726,2]
[341209742,1730646692358,-500.0,0.00039726,2]
[341209743,1730646692370,-156.66486474,0.00039726,2]
[341209744,1730646692380,-2000.0,0.00039726,2]
[341209745,1730646692390,-500.0,0.00039726,2]
[341209746,1730646692401,-403.44616777,0.00039726,2]
[341209747,1730646692410,-500.0,0.00039726,2]
[341209748,1730646692419,-500.0,0.00039726,2]
[341209749,1730646692428,-500.0,0.00039726,2]
[341209750,1730646692438,-500.0,0.00039726,2]
[341209751,1730646692448,-500.0,0.00039726,2]
[341209752,1730646692458,-1147.15,0.00039726,2]
[341209753,1730646692468,-908.15,0.00039726,2]
[341209754,1730646692477,-500.0,0.00039726,2]
[341209755,1730646692487,-10956.67,0.00039726,2]
[341209756,1730646692497,-500.0,0.00039726,2]
[341209757,1730646692506,-500.0,0.00039726,2]
[341209758,1730646692515,-500.0,0.00039726,2]
[341209759,1730646692525,-500.0,0.00039726,2]
[341209760,1730646692534,-500.0,0.00039726,2]
[341209761,1730646692545,-602.99,0.00039726,2]
[341209762,1730646692555,-691.73,0.00039726,2]
[341209763,1730646692564,-769.94,0.00039726,2]
[341209764,1730646692574,-500.0,0.00039726,2]
[341209765,1730646692583,-500.0,0.00039726,2]
[341209766,1730646692593,-500.0,0.00039726,2]
[341209767,1730646692603,-500.0,0.00039726,2]
[341209768,1730646692614,-500.0,0.00039726,2]
[341209769,1730646692624,-282.59413563,0.00039726,2]
[341209770,1730646692634,-660.29,0.00039726,2]
[341209771,1730646692643,-500.0,0.00039726,2]
[341209772,1730646692653,-500.0,0.00039726,2]
[341209773,1730646692663,-316.4055671,0.00039726,2]
[341209774,1730646692673,-500.0,0.00039726,2]
[341209775,1730646692682,-684.44,0.00039726,2]
[341209776,1730646692693,-224.25580049,0.00039726,2]
[341209777,1730646692703,-196.37635473,0.00039726,2]
[341209778,1730646692712,-500.0,0.00039726,2]
[341209779,1730646692722,-3893.36,0.00039726,2]
[341209780,1730646692731,-500.0,0.00039726,2]
[341209781,1730646692742,-627.36,0.00039726,2]
[341209782,1730646692752,-273.88302629,0.00039726,2]
[341209783,1730646692762,-1238.57,0.00039726,2]
[341209784,1730646692773,-1845.76,0.00039726,2]
[341209785,1730646692783,-498.21,0.00039726,2]
[341209786,1730646692792,-500.0,0.00039726,2]
[341209787,1730646692801,-963.64,0.00039726,2]
[341209788,1730646692812,-2000.0,0.00039726,30]
[341209789,1730646692822,-500.0,0.00039726,2]
[341209790,1730646692831,-500.0,0.00039726,2]
[341209791,1730646692841,-500.0,0.00039726,2]
[341209792,1730646692850,-500.0,0.00039726,2]
[341209793,1730646692861,-5855.7,0.00039726,2]
[341209794,1730646692874,-1805.52,0.00039726,2]
[341209795,1730646692886,-1176.28,0.00039726,2]
[341209796,1730646692895,-602.78,0.00039726,2]
[341209797,1730646692905,-500.0,0.00039726,2]
[341209798,1730646692915,-500.0,0.00039726,2]
[341209799,1730646692925,-324.94490734,0.00039726,2]
[341209800,1730646692934,-500.0,0.00039726,2]
[341209801,1730646692944,-1152.43,0.00039726,2]
[341209802,1730646692953,-500.0,0.00039726,2]
[341209803,1730646692962,-500.0,0.00039726,2]
[341209804,1730646692972,-500.0,0.00039726,2]
[341209805,1730646692982,-1221.41,0.00039726,2]
[341209806,1730646692991,-3349.02,0.00039726,2]
[341209807,1730646693000,-1633.72,0.00039726,2]
[341209808,1730646693010,-500.0,0.00039726,2]
[341209809,1730646693019,-1238.48,0.00039726,2]
[341209810,1730646693029,-500.0,0.00039726,2]
[341209811,1730646693039,-500.0,0.00039726,2]
[341209812,1730646693048,-605.50453385,0.00039726,2]
[341209813,1730646693058,-500.0,0.00039726,2]
[341209814,1730646693068,-3905.42,0.00039726,2]
[341209815,1730646693077,-500.0,0.00039726,2]
[341209816,1730646693087,-1373.97,0.00039726,2]
[341209817,1730646693096,-500.0,0.00039726,2]
[341209818,1730646693105,-2145.0,0.00039779,2]
[341209819,1730646693115,-194.48,0.0003978,120]
[341209820,1730646693124,-10000.000001,0.0003979,3]
[341209821,1730646693134,-150.5,0.0003979,120]
[341209822,1730646693143,-153.83721379,0.00039799,7]
[341209823,1730646693153,-550.84707568,0.00039799,7]
[341209824,1730646693162,-17448.0,0.000398,21]
[341209825,1730646693172,-1499997.99999999,0.000398,120]
[341209826,1730646693182,-9133.99853364,0.000398,2]
[341209827,1730646693191,-576.41,0.00039888,2]
[341209828,1730646693201,-2500.0,0.00039911,2]
[341209829,1730646693210,-2440.68,0.00039963,2]
[341209830,1730646693220,-550.0,0.00039964,4]
[341209831,1730646693230,-18881.81664692,0.0003999,2]
[341209832,1730646693240,-213.55,0.0003999,30]
[341209833,1730646693250,-174.43097473,0.00039999,31]
[341209834,1730646693259,-368.98584851,0.00039999,31]
[341209835,1730646693269,-2061.80782864,0.0004,120]
[341209836,1730646693278,-30000.0,0.0004,5]
[341209837,1730646693288,-10000.0,0.0004,7]
[341209838,1730646693298,-261006.16198166,0.0004,4]
[341209839,1730646693307,-20394.01169627,0.0004,5]
[341209840,1730646693364,-5932.95814947,0.0004,7]
[341209841,1730646693374,-1000.0,0.0004,120]
[341209842,1730646693383,-1000.0,0.0004,9]
[341209843,1730646693392,-2000.0,0.0004,120]
[341209844,1730646693402,-1661.48627119,0.0004,2]
[341209845,1730646693411,-2000.0,0.0004,3]
[341209846,1730646693420,-279.71673916,0.0004,30]
[341209847,1730646693429,-150.13066059,0.0004,30]
[341209848,1730646693439,-1790.1130684,0.0004,120]
[341209849,1730646693448,-3000.0,0.0004,2]
[341209850,1730646693458,-3000.0,0.0004,2]
[341209851,1730646693467,-3000.0,0.0004,2]
[341209852,1730646693477,-3000.0,0.0004,2]
[341209853,1730646693487,-3000.0,0.0004,2]
[341209854,1730646693496,-708.59,0.0004,2]
[341209855,1730646693506,-244.21170421,0.0004,120]
[341209856,1730646693515,-443.4173332,0.0004,120]
[341209857,1730646693525,-5000.0,0.0004,30]
[341209858,1730646693535,-373.68524441,0.0004,2]
[341209859,1730646693546,-300.0,0.0004,20]
[341209860,1730646693555,-753.0,0.0004,120]
[341209861,1730646693565,-1359.0161632,0.0004,120]
[341209862,1730646693575,-85450.28128332,0.0004,2]
[341209863,1730646693585,-5575.03915982,0.0004,2]
[341209864,1730646693595,-5043.4983252,0.0004,2]
[341209865,1730646693605,-490.23,0.0004,60]
[341209866,1730646693616,-1219.157421,0.0004,3]
[341209867,1730646693626,-6399.936462,0.0004,4]
[341209868,1730646693636,-2696.0,0.0004,8]
[341209869,1730646693647,-2696.0,0.0004,8]
[341209870,1730646693658,-2696.0,0.0004,8]
[341209871,1730646693668,-10911.24515501,0.0004,30]
[341209872,1730646693678,-498.22,0.0004,2]
[341209873,1730646693688,-717.63,0.0004,30]
[341209874,1730646693699,-1488.5,0.0004,2]
[341209875,1730646693709,-956.1,0.0004,7]
[341209876,1730646693719,-209.53928784,0.0004,2]
[341209877,1730646693729,-248.50532128,0.0004,2]
[341209878,1730646693738,-500.0,0.0004,2]
[341209879,1730646693748,-541.89879875,0.0004,2]
[341209880,1730646693758,-906.58,0.0004,2]
[341209881,1730646693768,-166.17333645,0.0004,2]
[341209882,1730646693778,-500.0,0.0004,2]
[341209883,1730646693788,-500.0,0.0004,2]
[341209884,1730646693799,-511.72423039,0.0004,2]
[341209885,1730646693808,-500.0,0.0004,2]
[341209886,1730646693818,-201.94887044,0.0004,2]
[341209887,1730646693828,-500.0,0.0004,2]
[341209888,1730646693838,-500.0,0.0004,2]
[341209889,1730646693848,-500.0,0.0004,2]
[341209890,1730646693858,-621.07640218,0.0004,2]
[341209891,1730646693869,-500.0,0.0004,2]
[341209892,1730646693878,-500.0,0.0004,2]
[341209893,1730646693889,-500.0,0.0004,2]
[341209894,1730646693899,-500.0,0.0004,2]
[341209895,1730646693909,-500.0,0.0004,2]
[341209896,1730646693919,-500.0,0.0004,2]
[341209897,1730646693928,-1281.51,0.0004,2]
[341209898,1730646693938,-250.0,0.0004,2]
[341209899,1730646693948,-500.0,0.0004,2]
[341209900,1730646693958,-500.0,0.0004,2]
[341209901,1730646693968,-500.0,0.0004,2]
[341209902,1730646693978,-500.0,0.0004,2]
[341209903,1730646693988,-798.34,0.0004,2]
[341209904,1730646693999,-500.0,0.0004,2]
[341209905,1730646694009,-500.0,0.0004,2]
[341209906,1730646694019,-1672.57,0.0004,2]
[341209907,1730646694029,-500.0,0.0004,2]
[341209908,1730646694039,-500.0,0.0004,2]
[341209909,1730646694049,-500.0,0.0004,2]
[341209910,1730646694059,-500.0,0.0004,2]
[341209911,1730646694069,-500.0,0.0004,2]
[341209912,1730646694079,-554.52710626,0.0004,2]
[341209913,1730646694089,-500.0,0.0004,2]
[341209914,1730646694099,-397.91726428,0.0004,2]
[341209915,1730646694109,-500.0,0.0004,2]
[341209916,1730646694119,-486.30384267,0.0004,2]
[341209917,1730646694129,-500.0,0.0004,2]
[341209918,1730646694139,-500.0,0.0004,2]
[341209919,1730646694149,-500.0,0.0004,2]
[341209920,1730646694159,-503.91,0.0004,2]
[341209921,1730646694168,-500.0,0.0004,2]
[341209922,1730646694179,-562.05442197,0.0004,2]
[341209923,1730646694189,-500.0,0.0004,2]
[341209924,1730646694199,-570.24869522,0.0004,89]
[341209925,1730646694209,-511.59277262,0.0004,2]
[341209926,1730646694219,-513.38,0.0004,2]
[341209927,1730646694229,-500.0,0.0004,2]
[341209928,1730646694240,-500.0,0.0004,2]
[341209929,1730646694250,-2000.0,0.0004,2]
[341209930,1730646694261,-613.09750898,0.0004,2]
[341209931,1730646694271,-500.0,0.0004,2]
[341209932,1730646694282,-500.0,0.0004,2]
[341209933,1730646694292,-500.0,0.0004,2]
[341209934,1730646694302,-500.0,0.0004,2]
[341209935,1730646694313,-516.5457385,0.0004,2]
[341209936,1730646694325,-1147.15,0.0004,2]
[341209937,1730646694335,-908.15,0.0004,2]
[341209938,1730646694346,-500.0,0.0004,2]
[341209939,1730646694357,-10956.67,0.0004,2]
[341209940,1730646694375,-500.0,0.0004,2]
[341209941,1730646694392,-500.0,0.0004,2]
[341209942,1730646694404,-500.0,0.0004,2]
[341209943,1730646694416,-500.0,0.0004,2]
[341209944,1730646694428,-247.87546294,0.0004,2]
[341209945,1730646694439,-602.99,0.0004,2]
[341209946,1730646694450,-691.73,0.0004,2]
[341209947,1730646694461,-769.94,0.0004,2]
[341209948,1730646694472,-500.0,0.0004,2]
[341209949,1730646694483,-500.0,0.0004,2]
[341209950,1730646694495,-500.0,0.0004,2]
[341209951,1730646694506,-500.0,0.0004,2]
[341209952,1730646694517,-479.7661316,0.0004,2]
[341209953,1730646694528,-660.29,0.0004,2]
[341209954,1730646694540,-500.0,0.0004,2]
[341209955,1730646694551,-295.08454622,0.0004,2]
[341209956,1730646694563,-500.0,0.0004,2]
[341209957,1730646694574,-684.44,0.0004,2]
[341209958,1730646694585,-500.0,0.0004,2]
[341209959,1730646694597,-3893.36,0.0004,2]
[341209960,1730646694607,-500.0,0.0004,2]
[341209961,1730646694621,-627.36,0.0004,2]
[341209962,1730646694632,-1238.57,0.0004,2]
[341209963,1730646694644,-1845.76,0.0004,2]
[341209964,1730646694655,-500.0,0.0004,2]
[341209965,1730646694667,-963.64,0.0004,2]
[341209966,1730646694679,-2000.0,0.0004,30]
[341209967,1730646694690,-500.0,0.0004,2]
[341209968,1730646694702,-500.0,0.0004,2]
[341209969,1730646694714,-500.0,0.0004,2]
[341209970,1730646694726,-500.0,0.0004,2]
[341209971,1730646694738,-5855.7,0.0004,2]
[341209972,1730646694757,-1805.52,0.0004,2]
[341209973,1730646694775,-1176.28,0.0004,2]
[341209974,1730646694793,-602.78,0.0004,2]
[341209975,1730646694807,-637.1043975,0.0004,2]
[341209976,1730646694823,-500.0,0.0004,2]
[341209977,1730646694839,-620.54933486,0.0004,2]
[341209978,1730646694854,-1152.43,0.0004,2]
[341209979,1730646694872,-500.0,0.0004,2]
[341209980,1730646694888,-500.0,0.0004,2]
[341209981,1730646694903,-500.0,0.0004,2]
[341209982,1730646694918,-1221.41,0.0004,2]
[341209983,1730646694934,-152.74,0.0004,2]
[341209984,1730646694949,-152.74,0.0004,2]
[341209985,1730646694962,-152.74,0.0004,2]
[341209986,1730646694976,-152.74,0.0004,2]
[341209987,1730646694990,-152.74,0.0004,2]
[341209988,1730646695005,-152.74,0.0004,2]
[341209989,1730646695020,-3349.02,0.0004,2]
[341209990,1730646695037,-152.74,0.0004,2]
[341209991,1730646695050,-152.74,0.0004,2]
[341209992,1730646695062,-152.74,0.0004,2]
[341209993,1730646695075,-152.74,0.0004,2]
[341209994,1730646695092,-152.74,0.0004,2]
[341209995,1730646695103,-152.74,0.0004,2]
[341209996,1730646695119,-152.74,0.0004,2]
[341209997,1730646695132,-152.74,0.0004,2]
[341209998,1730646695145,-1633.72,0.0004,2]
[341209999,1730646695158,-152.74,0.0004,2]
[341210000,1730646695172,-500.0,0.0004,2]
[341210001,1730646695184,-1238.48,0.0004,2]
[341210002,1730646695195,-500.0,0.0004,2]
[341210003,1730646695208,-500.0,0.0004,2]
[341210004,1730646695221,-500.0,0.0004,2]
[341210005,1730646695234,-3905.42,0.0004,2]
[341210006,1730646695247,-500.0,0.0004,2]
[341210007,1730646695260,-1373.97,0.0004,2]
[341210008,1730646695272,-500.0,0.0004,2]
[341210009,1730646695285,-152.0,0.00040062,10]
[341210010,1730646695298,-220.68652,0.00040088,7]
[341210011,1730646695311,-152.47,0.000401,31]
[341210012,1730646695327,-152.47,0.000401,31]
[341210013,1730646695339,-152.47,0.000401,31]
[341210014,1730646695351,-152.47,0.000401,31]
[341210015,1730646695366,-152.47,0.000401,31]
[341210016,1730646695379,-152.47,0.000401,31]
[341210017,1730646695392,-152.47,0.000401,31]
[341210018,1730646695405,-152.47,0.000401,31]
[341210019,1730646695417,-152.47,0.000401,31]
[341210020,1730646695431,-152.47,0.000401,31]
[341210021,1730646695444,-152.47,0.000401,31]
[341210022,1730646695456,-152.47,0.000401,31]
[341210023,1730646695469,-152.47,0.000401,31]
[341210024,1730646695481,-152.47,0.000401,31]
[341210025,1730646695492,-152.47,0.000401,31]
[341210026,1730646695504,-152.47,0.000401,31]
[341210027,1730646695516,-152.47,0.000401,31]
[341210028,1730646695528,-152.47,0.000401,31]